Cogmind - Beta 14 @@@ ROGUE MODE // 2024.08.08 @ 11:33:44 // Halloween2019/Abominations Player: Minty Result: Destroyed self with Mini Grenade Launcher Performance ------------- Evolutions (0) 0 Regions Visited (1) 200 Robots Destroyed (4) 20 Value Destroyed (257) 257 Prototype IDs (0) 0 Alien Tech Used (0) 0 Bonus (0) 0 TOTAL SCORE: 477 Bonus ------- None Cogmind --------- Core Integrity 0/250 Matter 219/300 Energy 99/100 System Corruption 7% Temperature Cool (0) Movement Rolling (80) Location -10/Materials Parts ------- > --- POWER (1) -------- (None) > --- PROPULSION (2) --- Wheel > --- UTILITY (2) ------ Small Storage Unit > --- WEAPON (2) ------- Light Assault Rifle Mini Grenade Launcher > --- INVENTORY (8) ---- Wheel EM Shotgun Mini Grenade Launcher Mini Grenade Launcher Mini Grenade Launcher Peak State ------------ > --- POWER ------------ Light Ion Engine > --- PROPULSION ------- Aluminum Leg Aluminum Leg > --- UTILITY ---------- Small Storage Unit > --- WEAPON ----------- EM Shotgun EM Shotgun > --- INVENTORY -------- Ion Engine Light Treads Light Treads Wheel Wheel EM Shotgun Mini Grenade Launcher Mini Grenade Launcher [Rating: 9] Favorites ----------- Power Light Ion Engine Engine Light Ion Engine Propulsion Aluminum Leg Leg Aluminum Leg Wheel Wheel Utility Small Storage Unit Storage Small Storage Unit Weapon Light Assault Rifle Energy Gun EM Shotgun Ballistic Gun Light Assault Rifle Launcher Mini Grenade Launcher Build | -11 -10 ------- Run | Yrd Mat Slots Evolved . | . . Power . | . . Propulsion . | . . Utility . | . . Weapon . | . . Parts Attached 7 | . 7 Power 1 | . 1 Engine 1 | . 1 Core . | . . Reactor . | . . Propulsion 1 | . 1 Treads . | . . Leg . | . . Wheel 1 | . 1 Hover . | . . Flight . | . . Utility . | . . Device . | . . Storage . | . . Processor . | . . Hackware . | . . Protection . | . . Artifact . | . . Weapon 5 | . 5 Energy Gun 2 | . 2 Energy Cannon . | . . Ballistic Gun 2 | . 2 Ballistic Cannon . | . . Launcher 1 | . 1 Special Weapon . | . . Impact Weapon . | . . Slashing Weapon . | . . Piercing Weapon . | . . Special Melee Weapon . | . . Unidentified Prototypes . | . . Parts Lost 6 | . 6 Power 2 | . 2 Propulsion 2 | . 2 Utility . | . . Weapon 2 | . 2 Highest Loss Streak 5 | . 5 To Critical Strikes . | . . Average Slot Usage (%) 76 | . 76 Engine 10 | . 10 Leg 21 | . 21 Wheel 3 | . 3 Storage 14 | . 14 Energy Gun 11 | . 11 Ballistic Gun 14 | . 14 Peak Build Rating 9 | . 9 Average Rating 6 | . 6 On Entrance 6 | 6 6 Naked Turns . | . . Heaviest Build 14 | 11 14 Greatest Support 20 | 20 20 Greatest Overweight (x) . | . . Average Overweight (x) . | . . Largest Inventory Capacity 8 | . 8 Average Capacity 8 | . 8 Most Carried 8 | . 8 Average Carried 7 | . 7 Final Capacity 8 | 8 8 Final Carried 6 | 6 5 Class Distribution -------------------- 100% | Mutant Dominant Class ---------------- Mutant | -10/Materials Resources | -11 -10 ----------- Run | Yrd Mat Matter Collected 243 | 197 46 Remotely . | . . Salvage Created 173 | . 173 Parts 10 | . 10 Haulers Intercepted . | . . Recyclers Shooed 1 | . 1 Parts Field Recycled . | . . Retrieved Matter . | . . Parts Self-Destructed . | . . Prevented . | . . Kills | -11 -10 ------- Run | Yrd Mat Combat Hostiles Destroyed 4 | . 4 Guns 1 | . 1 AOE 2 | . 2 Classes Destroyed 2 | . 2 Grunt 1 | . 1 Abomination 3 | . 3 Best Kill Streak 4 | . 4 Combat Bots Only 4 | . 4 Max Kills in Single Turn 1 | . 1 Gunslinging . | . . Exploded 1 | . 1 Melee . | . . Uniques/NPCs Destroyed . | . . Combat | -11 -10 -------- Run | Yrd Mat Hostile Shots Fired 58 | . 58 Missed 22 | . 22 Damage Taken 863 | . 863 Core 253 | . 253 Absorbed by Shields . | . . Core Remaining (%) 100 | 100 . Volleys Fired 24 | . 24 Largest 2 | . 2 Hottest 90 | . 90 Shots Fired 44 | . 44 Gun 40 | . 40 Cannon . | . . Launcher 4 | . 4 Special . | . . Kinetic 32 | . 32 Thermal 1 | . 1 Explosive 4 | . 4 Electromagnetic 7 | . 7 Robot Hit Streak 14 | . 14 Robot Miss Streak 2 | . 2 Penetration Max . | . . Secondary Targets 1 | . 1 Max Gunslinging Chain 1 | . 1 Shots Hit Robots 37 | . 37 Core Hits 13 | . 13 Critical Kills . | . . Critical Parts Destroyed 1 | . 1 Critical Strikes 1 | . 1 Destroy 1 | . 1 Melee Attacks . | . . Impact . | . . Slashing . | . . Piercing . | . . Sneak Attacks . | . . Combat Hostiles . | . . Follow-up Attacks . | . . Damage Inflicted 525 | . 525 Guns 257 | . 257 Cannons . | . . Explosions 268 | . 268 Melee . | . . Ramming . | . . Kinetic 222 | . 222 Thermal 10 | . 10 Explosive 268 | . 268 Electromagnetic 25 | . 25 Impact . | . . Slashing . | . . Piercing . | . . Highest Corruption 7 | . 7 Average Corruption 5 | . 5 Corruption Purged . | . . Corruption Blocked . | . . Effects 1 | . 1 Misfires 1 | . 1 Overload Shots . | . . Overflow Damage . | . . Projectiles . | . . Explosions . | . . Melee . | . . Knockbacks . | . . Impact . | . . Kinetic . | . . Secondary . | . . Self-Inflicted Damage 75 | . 75 Shots 2 | . 2 Rammed . | . . Targets Rammed . | . . Kicked . | . . Crushed . | . . Highest Temperature 99 | . 99 Average Temperature 33 | . 33 Received Heat Transfer 117 | . 117 Siege Activations . | . . Robots Corrupted . | . . Combat Hostiles . | . . Parts Fried . | . . Impact Corruptions . | . . Robots Melted . | . . Combat Hostiles . | . . Parts Melted . | . . Heat Transferred 25 | . 25 Parts Sabotaged . | . . Parts Stolen . | . . Parts Stripped . | . . Power Chain Reactions . | . . Alert | -11 -10 ------- Run | Yrd Mat Peak Influence 79 | . 79 Initial . | . . Average 5 | . 5 Maximum Alert Level . | . . Low Security (%) 100 | . 100 Level 1 . | . . Level 2 . | . . Level 3 . | . . Level 4 . | . . Level 5 . | . . High Security . | . . Max Security . | . . Squads Dispatched 3 | . 3 Investigation 3 | . 3 Extermination . | . . Reinforcement . | . . Assault . | . . Garrison . | . . Intercept . | . . Searches Triggered . | . . Construction Impeded . | . . Haulers Reinforced . | . . Active Scanning Responses . | . . Cargo Convoy Interrupts . | . . Stealth | -11 -10 --------- Run | Yrd Mat Distress Signals 2 | . 2 Communications Jammed . | . . Distress Signals . | . . Times Spotted 6 | . 6 Peak Tracking Total 4 | . 4 Tactical Retreats . | . . Traps | -11 -10 ------- Run | Yrd Mat Traps Triggered . | . . Indirectly . | . . Trap Hack Attempts . | . . Triggered . | . . Disarmed . | . . Reprogrammed 3 | . 3 Reused . | . . Traps Extracted . | . . Installed . | . . Triggered . | . . Machines | -11 -10 ---------- Run | Yrd Mat Machines Disabled 1 | . 1 Max in Single Turn 1 | . 1 Machines Repaired . | . . Machines Dismantled . | . . Machines Sabotaged . | . . Overloaded Fab Kills . | . . Hacking | -11 -10 --------- Run | Yrd Mat Machines Accessed 1 | . 1 Terminals 1 | . 1 Fabricators . | . . Repair Stations . | . . Recycling Units . | . . Scanalyzers . | . . Garrison Access . | . . Total Hacks 6 | . 6 Successful 3 | . 3 Failed 3 | . 3 Catastrophic . | . . Database Lockouts . | . . Manual 2 | . 2 Terminals 6 | . 6 Fabricators . | . . Repair Stations . | . . Recycling Units . | . . Scanalyzers . | . . Garrison Access . | . . Terminal Hacks 3 | . 3 Alert Level 1 | . 1 Locate Traps 1 | . 1 Reprogram Traps 1 | . 1 Fabricator Hacks . | . . Repair Station Hacks . | . . Recycling Unit Hacks . | . . Scanalyzer . | . . Garrison Access Hacks . | . . Unauthorized Hacks . | . . Terminals . | . . Fabricators . | . . Repair Stations . | . . Recycling Units . | . . Scanalyzers . | . . Garrison Access . | . . Data Cores Recovered . | . . Used . | . . Hacking Detections 1 | . 1 Full Trace Events 1 | . 1 Feedback Events . | . . Feedback Blocked . | . . Robot Schematics Acquired . | . . Robots Built . | . . Authchips . | . . Time . | . . Total Robot Build Rating . | . . Part Schematics Acquired . | . . Parts Built . | . . Authchips . | . . Time . | . . Total Part Build Rating . | . . Parts Repaired . | . . Time . | . . Parts Recycled . | . . Recycled Matter . | . . Retrieved Matter . | . . Retrieved Components . | . . Parts Scanalyzed . | . . Part Schematics Acquired . | . . Parts Damaged . | . . Bothacking | -11 -10 ------------ Run | Yrd Mat Used RIF Installer . | . . Robots Hacked . | . . Non-combat . | . . Combat . | . . Robot Hacks Applied . | . . Relay Couplers Released . | . . Fabnet Peak Effective % . | . . Robots Rewired . | . . Allies Hacked . | . . Hacks Repelled . | . . Allies | -11 -10 -------- Run | Yrd Mat Total Allies . | . . Largest Group . | . . Highest-Rated Group . | . . Highest-Rated Ally . | . . Total Orders . | . . Ally Attacks . | . . Total Damage . | . . Kills . | . . Allies Corrupted . | . . Allies Melted . | . . Intel | -11 -10 ------- Run | Yrd Mat Robot Analysis Total . | . . Derelict Logs Recovered . | . . Drone Launches . | . . Drone Recoveries . | . . Exploration | -11 -10 ------------- Run | Yrd Mat Turns Passed 183 | . 183 Spaces Moved 93 | 1 92 Core . | . . Treads . | . . Legs 76 | 1 75 Wheels 17 | . 17 Hover . | . . Flight . | . . Fastest Speed 80 | 120 80 Average Speed 112 | 120 112 Slowest Speed 120 | 120 120 Overloaded Moves . | . . Propulsion Burnouts . | . . Robots Hopped . | . . Cave-ins Triggered . | . . Exploration Rate (%) 14 | 2 27 Regions Visited 1 Branch Regions . Pre-discovered Areas . | . . Known Exits Taken . | . . Unknown Exits Taken 1 | 1 . Scrap Searched . | . . Spaces Dug . | . . Terrain Destroyed 31 | . 31 Melee . | . . Projectile . | . . AOE 31 | . 31 Terrain Rammed . | . . Walls Destroyed . | . . Machines Disabled . | . . Actions | -11 -10 --------- Run | Yrd Mat Total 138 | . 138 Wait 2 | . 2 Move 92 | . 92 Hop . | . . Pick Up 6 | . 6 Fast Attach 4 | . 4 Attach 3 | . 3 Detach . | . . Swap . | . . Drop 7 | . 7 Fire 24 | . 24 Melee . | . . Ram . | . . Kick . | . . Crush . | . . Escape Stasis . | . . Rewire . | . . Trap . | . . Miscellaneous . | . . Route ------- -11/Scrapyard -10/Materials History --------- Turn | Location | Event 1 | -11/Scrapyard | Discovered new exit (range 0) 1 | -11/Scrapyard | Entered Materials 76 | -10/Materials | Discovered new exit (range 16) 146 | -10/Materials | Core integrity fell below 50% 179 | -10/Materials | Core integrity fell below 20% 184 | -10/Materials | Destroyed self with Mini Grenade Launcher Last Messages --------------- 00172_ Connecting with Terminal... 00172_ Current location identified: Materials >>Alert(Check) Current Alert Level: Low Security >>Traps(Locate) Found 3 traps in 1 array: 3x Shock Trap Map updated. >>Traps(Reprogram) Reprogrammed 3 Shock Traps. 00172_ ALERT: Suspicious activity at Terminal M004. Dispatching Investigation squad. 00174_ System corrupted: FCS attempts to trigger Lgt. Assault Rifle. 00174_ System corrupted: Lgt. Assault Rifle misfires. 00178_ Lesser Abomination destroyed. 00178_ Terminal disabled. 00182_ Lesser Abomination absorbs Field Recycling Unit. 00182_ Minor Abomination destroyed. 00183_ Lesser Abomination absorbs Terrain Scanner, Imp. Terrain Scanner. 00183_ Unstable Anomaly suddenly flashes brightly. Map ----- +----------------------------------------------------+ | ???????????????????????????????????????????????? | | ???????????????????????????????????????????????? | | ???????????????????????????????????????????????? | | ???????????????????????????????????????????????? | | ???????????????????????????????????????????????? | | ???????????????????????????????????????????????? | | ???????????????????????????????????????????????? | | ???????????????????????????????????????????????? | | ???????????????????????????????????????????????? | | ???????????????????????????????????^^??????????? | | ???????????????????????????????????????????????? | | ?????????????????????????????? ??????????????? | | ?????????????????????????????? ? ??????????? | | ?????????????????????????????? ????????? | | ?????????????????????????????? ????????? | | ?????????????????????????????? ####?????? | | ?????????????????????????????? % ?????? | | ?????????????????????????????? ?????? | | ?????????????????????????????# #????? | | ????????????????????????###### #????? | | ???????????????????????? # ## #????? | | ????????????????????#### # ??????? | | ????????????????????# #????????? | | ????????????????????# ?????????? | | ????????????????????## % A = #???##???????? | | ????????????????????# @ % #??? """#?????? | | ????????????????????# #?? "#?????? | | ????????????????????### "#?????? | | ??????????????????????# # # < ""#?????? | | ??????????????????????##### ## # "#?????? | | ???????????????????????????### # "#?????? | | ????????????????????????????## # """??????? | | ????????????????????????????# #????????? | | ???????????????????????????## # """????? | | ???????????????????????????# ""T????? | | ???????????????????????????# = = ?? | | ???????????????## ????????# [ / ?? | | ???????????????# ####### ?? | | ???????????????# =%[ #+####### | | ???????????????# | | ???????????????# | | ???????????????# ####### " | | ???????????????## ## ## """ ##+######? | | ????????????????# ## ## """ #?? ?????? | | ????????????????# ## ## #????????? | | ????????????????# ## ] ## #????????? | | ????????????????# ## ## #????????? | | ????????????????# ## ## #????????? | | ????????????????# ## ## [ #????????? | | ???############## ####+### #????????? | +----------------------------------------------------+ Best States ------------- Heat Dissipation 25 Energy Generation 10 Energy Capacity 250 Matter Stores 300 Matter Capacity 300 Sight Range 16 Terrain Scan Density 10 Evasion (%) 55 Item Schematics ----------------- None Robot Schematics ------------------ None Fabricated ------------ Nothing Alien Tech Used ----------------- None Achievements -------------- None Challenges ------------ None Game ------ Seed NeutronChainScreen Manual? 0 Play Time 00:03:56 Cumulative 842.4 hours Start 2024.08.08 @ 11:31:42 End 2024.08.08 @ 11:33:44 Sessions 1 Manual Loads 0 Difficulty Rogue Special Mode Halloween2019/Abominations Game No. 1003 Rogue 724 Adventurer 124 Explorer 155 Win Type - Total 35 Types 27/0/6/1/0/0/0/1/0 Lore% 72 Gallery% 88 Achievement% 78 Wizard Run 0 Options --------- Layout 0 ASCII 0 Keyboard 1 Movement Numpad Keybinds 0 Fullscreen 2 Font 18/Smallcaps Map View 76x50 Zoom Use 1% Tactical HUD 1 Map Filters NONE Filters NONE Steam 1 RUN: 8b119d38-e003-41c7-ab30-2aaaca08a398